fUSD/lending_fUSD_20241104
["ID","MTS","AMOUNT","RATE_DAILY","PERIOD"]
[341313073,1730764239940,-150.0,0.00022823,2]
[341313074,1730764239949,-150.0,0.00022826,2]
[341313075,1730764239959,-150.0,0.00022826,2]
[341313076,1730764239969,-150.0,0.00022828,2]
[341313077,1730764239978,-150.0,0.0002283,2]
[341313078,1730764239987,-150.0,0.00022831,2]
[341313079,1730764239997,-150.0,0.00022833,2]
[341313080,1730764240006,-150.0,0.00022834,2]
[341313081,1730764240016,-150.0,0.00022835,2]
[341313082,1730764240026,-150.0,0.00022841,2]
[341313083,1730764240035,-150.0,0.00022844,2]
[341313084,1730764240045,-150.0,0.00022846,2]
[341313085,1730764240054,-672.22,0.00022847,2]
[341313086,1730764240064,-150.0,0.0002285,2]
[341313087,1730764240073,-150.0,0.00022852,2]
[341313088,1730764240083,-150.0,0.00022853,2]
[341313089,1730764240092,-150.0,0.00022853,2]
[341313090,1730764240104,-150.0,0.00022854,2]
[341313091,1730764240113,-150.0,0.00022857,2]
[341313092,1730764240123,-150.0,0.00022859,2]
[341313093,1730764240132,-150.0,0.00022859,2]
[341313094,1730764240142,-152.359,0.0002286,14]
[341313095,1730764240151,-150.0,0.00022863,2]
[341313096,1730764240160,-150.0,0.00022868,2]
[341313097,1730764240170,-150.0,0.00022868,2]
[341313098,1730764240179,-150.0,0.00022869,2]
[341313099,1730764240188,-150.0,0.00022869,2]
[341313100,1730764240198,-150.0,0.0002287,2]
[341313101,1730764240207,-150.0,0.00022874,2]
[341313102,1730764240216,-150.0,0.00022877,2]
[341313103,1730764240226,-150.0,0.00022881,2]
[341313104,1730764240235,-150.0,0.00022882,2]
[341313105,1730764240245,-150.0,0.00022883,2]
[341313106,1730764240254,-150.0,0.00022885,2]
[341313107,1730764240263,-150.0,0.00022885,2]
[341313108,1730764240273,-150.0,0.00022887,2]
[341313109,1730764240282,-150.0,0.00022887,2]
[341313110,1730764240291,-150.0,0.00022888,2]
[341313111,1730764240300,-150.0,0.00022889,2]
[341313112,1730764240309,-150.0,0.00022892,2]
[341313113,1730764240318,-150.0,0.00022897,2]
[341313114,1730764240327,-150.0,0.00022899,2]
[341313115,1730764240337,-150.0,0.00022903,2]
[341313116,1730764240347,-150.0,0.00022914,2]
[341313117,1730764240356,-150.0,0.00022915,2]
[341313118,1730764240366,-150.0,0.00022917,2]
[341313119,1730764240375,-150.0,0.00022929,2]
[341313120,1730764240385,-150.0,0.0002293,2]
[341313121,1730764240555,-150.0,0.00022939,2]
[341313122,1730764240568,-150.0,0.00022941,2]
[341313123,1730764240578,-150.0,0.00022948,2]
[341313124,1730764240588,-150.0,0.00022951,2]
[341313125,1730764240597,-150.0,0.00022959,2]
[341313126,1730764240607,-150.0,0.00022964,2]
[341313127,1730764240616,-150.0,0.00022965,2]
[341313128,1730764240625,-150.0,0.0002297,2]
[341313129,1730764240634,-150.0,0.00022971,2]
[341313130,1730764240647,-150.0,0.00022974,2]
[341313131,1730764240656,-150.0,0.00022974,2]
[341313132,1730764240665,-150.0,0.00022975,2]
[341313133,1730764240675,-150.0,0.00022978,2]
[341313134,1730764240685,-150.0,0.00022979,2]
[341313135,1730764240694,-150.0,0.00022979,2]
[341313136,1730764240703,-150.0,0.00022981,2]
[341313137,1730764240712,-150.0,0.00022981,2]
[341313138,1730764240723,-150.0,0.00022981,2]
[341313139,1730764240732,-150.0,0.00022981,2]
[341313140,1730764240741,-150.0,0.00022984,2]
[341313141,1730764240750,-150.0,0.00022992,2]
[341313142,1730764240759,-1500.0,0.00022994,2]
[341313143,1730764240768,-300.0,0.00023,2]
[341313144,1730764240778,-308.82556369,0.00023042,2]
[341313145,1730764240787,-1000.0,0.00023137,2]
[341313146,1730764240797,-504.12663492,0.00023342,2]
[341313147,1730764240807,-1000.0,0.00023545,2]
[341313148,1730764240816,-1000.0,0.00023545,2]
[341313149,1730764240825,-1000.0,0.00023545,2]
[341313150,1730764240835,-170.07,0.00023732,2]
[341313151,1730764240844,-164.74,0.00023732,2]
[341313152,1730764240854,-168.3,0.00023732,2]
[341313153,1730764240864,-152.307,0.0002374,31]
[341313154,1730764240873,-20706.94409178,0.00023922,2]
[341313155,1730764240883,-161.78311514,0.00023928,2]
[341313156,1730764240892,-152.321,0.0002462,10]
[341313157,1730764240901,-200.0,0.00024792,2]
[341313158,1730764240910,-308.82556369,0.00024813,2]
[341313159,1730764240919,-252.86,0.00024877,30]
[341313160,1730764240929,-350.0,0.00025,2]
[341313161,1730764240938,-1000.0,0.00025,2]
[341313162,1730764240947,-164.74,0.00025038,2]
[341313163,1730764240956,-200.0,0.0002504,2]
[341313164,1730764240965,-2000.0,0.00025074,2]
[341313165,1730764240974,-200.0,0.00025074,2]
[341313166,1730764240983,-1689.48206371,0.00025074,2]
[341313167,1730764240992,-200.0,0.00025074,2]
[341313168,1730764241002,-162.0,0.00025099,4]
[341313169,1730764241010,-672.22,0.00025111,2]
[341313170,1730764241020,-2009.51712398,0.000253,5]
[341313171,1730764241029,-2000.0,0.00025325,2]
[341313172,1730764241038,-200.0,0.00025325,2]
[341313173,1730764241048,-200.0,0.00025325,2]
[341313174,1730764241057,-153.165,0.000255,5]
[341313175,1730764241066,-2000.0,0.00025578,2]
[341313176,1730764241076,-200.0,0.00025578,2]
[341313177,1730764241085,-200.0,0.00025578,2]
[341313178,1730764241095,-501.86850229,0.00025641,2]
[341313179,1730764241104,-2000.0,0.00025834,2]
[341313180,1730764241113,-200.0,0.00025834,2]
[341313181,1730764241123,-200.0,0.00025834,2]
[341313182,1730764241132,-502.9612243,0.0002605,2]
[341313183,1730764241141,-1005.34557489,0.0002605,2]
[341313184,1730764241151,-1500.0,0.0002605,2]
[341313185,1730764241160,-2000.0,0.00026092,2]
[341313186,1730764241170,-200.0,0.00026092,2]
[341313187,1730764241180,-164.74,0.00026344,2]
[341313188,1730764241190,-517.35449394,0.000264,2]
[341313189,1730764241199,-156.54,0.00026401,2]
[341313190,1730764241209,-308.82556369,0.00026585,2]
[341313191,1730764241218,-400.0,0.00027,2]
[341313192,1730764241229,-672.22,0.00027375,2]
[341313193,1730764241238,-150.0,0.00027397,7]
[341313194,1730764241248,-194.12,0.00027397,10]
[341313195,1730764241257,-252.86,0.00027461,30]
[341313196,1730764241266,-156.48,0.00027507,2]
[341313197,1730764241275,-1251.0,0.00027552,2]
[341313198,1730764241285,-454.183,0.00027552,2]
[341313199,1730764241294,-245.946,0.00027552,2]
[341313200,1730764241304,-1987.0,0.00027552,2]
[341313201,1730764241313,-558.0,0.00027552,2]
[341313202,1730764241323,-1794.0,0.00027552,2]
[341313203,1730764241332,-341.073,0.00027552,2]
[341313204,1730764241342,-2906.0,0.00027552,2]
[341313205,1730764241352,-1256.0,0.00027552,2]
[341313206,1730764241362,-3375.0,0.00027552,2]
[341313207,1730764241372,-153.803,0.00027552,2]
[341313208,1730764241381,-5916.0,0.00027552,2]
[341313209,1730764241391,-13601.0,0.00027552,2]
[341313210,1730764241400,-1156.0,0.00027552,2]
[341313211,1730764241409,-254.337,0.00027552,2]
[341313212,1730764241419,-164.74,0.00027649,2]
[341313213,1730764241427,-229.0,0.00028,2]
[341313214,1730764241436,-249.35,0.00028147,2]
[341313215,1730764241447,-308.82556369,0.00028357,2]
[341313216,1730764241456,-152.311,0.0002843,2]
[341313217,1730764241466,-152.1295,0.0002845,2]
[341313218,1730764241475,-966.3,0.000287,2]
[341313219,1730764241484,-735.2,0.000287,2]
[341313220,1730764241493,-360.0,0.000287,2]
[341313221,1730764241503,-1000.0,0.000287,2]
[341313222,1730764241512,-450.0,0.00029,2]
[341313223,1730764241521,-1005.84257795,0.00029293,5]
[341313224,1730764241530,-672.22,0.00029639,2]
[341313225,1730764241539,-171.03504409,0.000299,2]
[341313226,1730764241549,-191.9027502,0.000299,2]
[341313227,1730764241558,-29226.93171362,0.00029997,2]
[341313228,1730764241567,-151.0,0.0003,120]
[341313229,1730764241576,-151.67648241,0.0003,30]
[341313230,1730764241585,-449.5975,0.0003,2]
[341313231,1730764241595,-449.5975,0.0003,2]
[341313232,1730764241606,-59034.4379251,0.0003,2]
[341313233,1730764242069,-161.77,0.00027397,10]
[341313234,1730764242078,-327.29503708,0.0003,2]
[341313235,1730764242090,-1642.12361125,0.0003,2]
[341313236,1730764242120,-298.96,0.0003,2]
[341313237,1730764242132,-11507.880215,0.0003,2]
[341313238,1730764242143,-5437.16748467,0.0003,2]
[341313239,1730764242155,-882.39151,0.0003,2]
[341313240,1730764242166,-989.21261668,0.0003,2]
[341313241,1730764242351,-9803.45408208,0.0003,2]
[341313242,1730764242362,-1148.53839472,0.0003,2]
[341313243,1730764242373,-6009.59153113,0.0003,2]
[341313244,1730764242384,-994.11484087,0.0003,2]
[341313245,1730764242395,-3403.7999388,0.0003,2]
[341313246,1730764242406,-819.45729106,0.0003,2]
[341313247,1730764242417,-1166.31494601,0.0003,2]
[341313248,1730764242431,-300.0,0.0003,2]
[341313249,1730764242442,-715.50875528,0.0003,2]
[341313250,1730764242464,-1736.12400005,0.0003,2]
[341313251,1730764242474,-262.894995,0.0003,2]
[341313252,1730764242485,-8143.33150963,0.0003,2]
[341313253,1730764242510,-284.0,0.0003,2]
[341313254,1730764242521,-255.4974,0.0003,2]
[341313255,1730764242531,-302.2027,0.0003,2]
[341313261,1730764243073,-586808.30776202,0.0003,2]
[341313262,1730764243083,-335.41643578,0.0003,2]
[341313263,1730764243092,-12672.36390094,0.0003,2]
[341313264,1730764243102,-151.0,0.0003,7]
[341313265,1730764243111,-241.899569,0.0003,7]
[341313266,1730764243120,-151.0,0.0003,7]
[341313267,1730764243130,-151.0,0.0003,7]
[341313268,1730764243138,-168.492819,0.0003,7]
[341313269,1730764243148,-151.0,0.0003,7]
[341313270,1730764243157,-151.0,0.0003,7]
[341313271,1730764243166,-151.0,0.0003,7]
[341313272,1730764243175,-151.0,0.0003,7]
[341313273,1730764243185,-151.0,0.0003,7]
[341313274,1730764243194,-151.0,0.0003,7]
[341313275,1730764243203,-151.0,0.0003,7]
[341313276,1730764243212,-151.0,0.0003,7]
[341313277,1730764243221,-151.0,0.0003,7]
[341313278,1730764243230,-154.397608,0.0003,7]
[341313279,1730764243239,-151.0,0.0003,7]
[341313280,1730764243247,-267.643232,0.0003,7]
[341313281,1730764243256,-412.73,0.0003,20]
[341313282,1730764243265,-151.0,0.0003,7]
[341313283,1730764243274,-300.986512,0.0003,7]
[341313284,1730764243283,-151.0,0.0003,7]
[341313285,1730764243292,-151.0,0.0003,7]
[341313286,1730764243301,-151.0,0.0003,7]
[341313287,1730764243310,-151.0,0.0003,7]
[341313288,1730764243319,-151.0,0.0003,7]
[341313289,1730764243329,-151.0,0.0003,7]
[341313290,1730764243338,-151.0,0.0003,7]
[341313291,1730764243347,-151.0,0.0003,7]
[341313292,1730764243359,-156.639434,0.0003,7]
[341313293,1730764243368,-151.0,0.0003,7]
[341313294,1730764243377,-272.179956,0.0003,7]
[341313295,1730764243387,-272.179956,0.0003,7]
[341313296,1730764243396,-151.0,0.0003,7]
[341313297,1730764243405,-151.0,0.0003,7]
[341313298,1730764243414,-151.0,0.0003,7]
[341313299,1730764243423,-151.0,0.0003,7]
[341313300,1730764243433,-151.0,0.0003,7]
[341313301,1730764243442,-151.0,0.0003,7]
[341313302,1730764243451,-182.88753933,0.0003,2]
[341313303,1730764243460,-151.0,0.0003,7]
[341313304,1730764243469,-151.0,0.0003,7]
[341313305,1730764243479,-151.0,0.0003,7]
[341313306,1730764243488,-151.0,0.0003,7]
[341313307,1730764243497,-151.0,0.0003,7]
[341313308,1730764243506,-521.179929,0.0003,2]
[341313309,1730764243515,-151.0,0.0003,7]
[341313310,1730764243524,-353.617845,0.0003,7]
[341313311,1730764243533,-353.617845,0.0003,7]
[341313312,1730764243542,-151.0,0.0003,7]
[341313313,1730764243551,-8179.673879,0.0003,7]
[341313314,1730764243738,-255.145078,0.0003,7]
[341313315,1730764243747,-8179.673879,0.0003,7]
[341313316,1730764243756,-255.145078,0.0003,7]
[341313317,1730764243765,-276.141377,0.0003,7]
[341313318,1730764243775,-300.554839,0.0003,7]
[341313319,1730764243784,-300.554839,0.0003,7]
[341313320,1730764243792,-151.0,0.0003,7]
[341313321,1730764243802,-3754.56087733,0.00030036,2]
[341313322,1730764243810,-252.86,0.00030045,30]
[341313323,1730764243819,-625.0,0.00030055,2]
[341313324,1730764243828,-625.0,0.00030055,2]
[341313325,1730764243838,-308.82556369,0.00030128,15]
[341313326,1730764243847,-300.0,0.00030135,10]
[341313327,1730764243858,-300.0,0.00030135,10]
[341313328,1730764243867,-150.0,0.00030135,7]
[341313329,1730764243876,-154.38914459,0.00030135,7]
[341313330,1730764243885,-750.418151,0.00030136,2]
[341313331,1730764243894,-750.418151,0.00030136,2]
[341313332,1730764243903,-750.418151,0.00030136,2]
[341313333,1730764243912,-750.418151,0.00030136,2]
[341313334,1730764243921,-168.100051,0.00030136,2]
[341313335,1730764243930,-168.100051,0.00030136,2]
[341313336,1730764243939,-153.23603,0.00030136,2]
[341313337,1730764243949,-153.23603,0.00030136,2]
[341313338,1730764243958,-500.0,0.00030136,2]
[341313339,1730764243967,-500.0,0.00030136,2]
[341313340,1730764243976,-1171.148853,0.00030136,2]
[341313341,1730764243985,-1171.148853,0.00030136,2]
[341313342,1730764243994,-1171.148853,0.00030136,2]
[341313343,1730764244003,-1171.148853,0.00030136,2]
[341313344,1730764244013,-352.91330412,0.00030136,2]
[341313345,1730764244022,-501.62265085,0.00030136,2]
[341313346,1730764244031,-500.0,0.00030136,2]
[341313347,1730764244040,-500.0,0.00030136,2]
[341313348,1730764244049,-500.11339728,0.00030136,2]
[341313349,1730764244059,-500.0,0.00030136,2]
[341313350,1730764244068,-500.0,0.00030136,2]
[341313351,1730764244077,-500.0,0.00030136,2]
[341313352,1730764244086,-500.0,0.00030136,2]
[341313353,1730764244096,-500.0,0.00030136,2]
[341313354,1730764244107,-532.12841506,0.00030136,2]
[341313355,1730764244116,-563.8015271,0.00030136,2]
[341313356,1730764244125,-500.0,0.00030136,2]
[341313357,1730764244134,-500.0,0.00030136,2]
[341313358,1730764244144,-500.0,0.00030136,2]
[341313359,1730764244153,-500.0,0.00030136,2]
[341313360,1730764244163,-374.99696537,0.00030136,2]
[341313361,1730764244172,-500.0,0.00030136,2]
[341313362,1730764244181,-483.15633231,0.00030136,2]
[341313363,1730764244191,-500.0,0.00030136,2]
[341313364,1730764244200,-500.0,0.00030136,2]
[341313365,1730764244210,-500.0,0.00030136,2]
[341313366,1730764244220,-458.86169732,0.00030136,2]
[341313367,1730764244229,-500.0,0.00030136,2]
[341313368,1730764244238,-500.0,0.00030136,2]
[341313369,1730764244247,-500.0,0.00030136,2]
[341313370,1730764244257,-500.0,0.00030136,2]
[341313371,1730764244266,-151.0,0.00030136,7]
[341313372,1730764244276,-151.0,0.00030136,7]
[341313373,1730764244285,-151.0,0.00030136,7]
[341313374,1730764244294,-500.0,0.00030136,2]
[341313375,1730764244303,-500.0,0.00030136,2]
[341313376,1730764244312,-151.0,0.00030136,7]
[341313377,1730764244321,-500.0,0.00030136,2]
[341313378,1730764244330,-500.0,0.00030136,2]
[341313379,1730764244339,-500.0,0.00030136,2]
[341313380,1730764244350,-500.0,0.00030136,2]
[341313381,1730764244360,-500.0,0.00030136,2]
[341313382,1730764244369,-500.0,0.00030136,2]
[341313383,1730764244379,-500.0,0.00030136,2]
[341313384,1730764244388,-151.0,0.00030136,7]
[341313385,1730764244397,-500.0,0.00030136,2]
[341313386,1730764244406,-151.0,0.00030136,7]
[341313387,1730764244415,-557.1299728,0.00030136,2]
[341313388,1730764244424,-257.659403,0.00030136,7]
[341313389,1730764244433,-500.0,0.00030136,2]
[341313390,1730764244442,-500.0,0.00030136,2]
[341313391,1730764244451,-500.0,0.00030136,2]
[341313392,1730764244460,-500.0,0.00030136,2]
[341313393,1730764244469,-500.0,0.00030136,2]
[341313394,1730764244478,-500.0,0.00030136,2]
[341313395,1730764244487,-500.0,0.00030136,2]
[341313396,1730764244496,-500.0,0.00030136,2]
[341313397,1730764244505,-500.0,0.00030136,2]
[341313398,1730764244514,-184.07810934,0.00030136,2]
[341313399,1730764244523,-500.0,0.00030136,2]
[341313400,1730764244533,-500.0,0.00030136,2]
[341313401,1730764244542,-501.84994097,0.00030136,2]
[341313402,1730764244551,-500.0,0.00030136,2]
[341313403,1730764244560,-500.0,0.00030136,2]
[341313404,1730764244569,-500.0,0.00030136,2]
[341313405,1730764244578,-500.0,0.00030136,2]
[341313406,1730764244587,-535.64,0.00030136,2]
[341313407,1730764244597,-535.64,0.00030136,2]
[341313408,1730764244608,-500.0,0.00030136,2]
[341313409,1730764244617,-535.64,0.00030136,2]
[341313410,1730764244626,-500.0,0.00030136,2]
[341313411,1730764244635,-535.64,0.00030136,2]
[341313412,1730764244648,-500.0,0.00030136,2]
[341313413,1730764244656,-535.64,0.00030136,2]
[341313414,1730764244665,-535.64,0.00030136,2]
[341313415,1730764244674,-535.64,0.00030136,2]
[341313416,1730764244683,-535.64,0.00030136,2]
[341313417,1730764244694,-535.64,0.00030136,2]
[341313418,1730764244703,-535.64,0.00030136,2]
[341313419,1730764244711,-535.64,0.00030136,2]
[341313420,1730764244722,-500.0,0.00030136,2]
[341313421,1730764244732,-502.06079605,0.00030136,2]
[341313422,1730764244741,-500.0,0.00030136,2]
[341313423,1730764244750,-500.0,0.00030136,2]
[341313424,1730764244760,-500.0,0.00030136,2]
[341313425,1730764244770,-420.6394994,0.00030136,2]
[341313426,1730764244780,-500.0,0.00030136,2]
[341313427,1730764244790,-599.23493601,0.00030136,2]
[341313428,1730764244800,-500.0,0.00030136,2]
[341313429,1730764244809,-500.0,0.00030136,2]
[341313430,1730764244820,-500.0,0.00030136,2]
[341313431,1730764244831,-500.0,0.00030136,2]
[341313432,1730764244840,-500.0,0.00030136,2]
[341313433,1730764244851,-500.0,0.00030136,2]
[341313434,1730764244860,-500.0,0.00030136,2]
[341313435,1730764244869,-500.0,0.00030136,2]
[341313436,1730764244879,-500.0,0.00030136,2]
[341313437,1730764244888,-500.0,0.00030136,2]
[341313438,1730764244899,-500.0,0.00030136,2]
[341313439,1730764244909,-500.0,0.00030136,2]
[341313440,1730764244918,-500.0,0.00030136,2]
[341313441,1730764244927,-500.0,0.00030136,2]
[341313442,1730764244936,-518.12332023,0.00030136,2]
[341313443,1730764244946,-500.0,0.00030136,2]
[341313444,1730764244956,-500.0,0.00030136,2]
[341313445,1730764244965,-500.0,0.00030136,2]
[341313446,1730764244974,-500.0,0.00030136,2]
[341313447,1730764244983,-500.0,0.00030136,2]
[341313448,1730764244992,-500.0,0.00030136,2]
[341313449,1730764245001,-500.0,0.00030136,2]
[341313450,1730764245011,-500.0,0.00030136,2]
[341313451,1730764245020,-500.0,0.00030136,2]
[341313452,1730764245029,-500.0,0.00030136,2]
[341313453,1730764245038,-500.0,0.00030136,2]
[341313454,1730764245047,-500.0,0.00030136,2]
[341313455,1730764245057,-500.0,0.00030136,2]
[341313456,1730764245066,-500.0,0.00030136,2]
[341313457,1730764245075,-500.0,0.00030136,2]
[341313458,1730764245085,-500.0,0.00030136,2]
[341313459,1730764245094,-500.0,0.00030136,2]
[341313460,1730764245105,-581.31141577,0.00030136,2]
[341313461,1730764245114,-500.0,0.00030136,2]
[341313462,1730764245123,-500.0,0.00030136,2]
[341313463,1730764245133,-500.0,0.00030136,2]
[341313464,1730764245142,-500.0,0.00030136,2]
[341313465,1730764245151,-500.0,0.00030136,2]
[341313466,1730764245161,-500.0,0.00030136,2]
[341313467,1730764245170,-500.0,0.00030136,2]
[341313468,1730764245180,-500.0,0.00030136,2]
[341313469,1730764245189,-500.0,0.00030136,2]
[341313470,1730764245199,-534.18775444,0.00030136,2]
[341313471,1730764245209,-500.0,0.00030136,2]
[341313472,1730764245219,-500.0,0.00030136,2]
[341313473,1730764245229,-500.0,0.00030136,2]
[341313474,1730764245239,-500.0,0.00030136,2]
[341313475,1730764245248,-500.0,0.00030136,2]
[341313476,1730764245257,-500.0,0.00030136,2]
[341313477,1730764245266,-524.73,0.00030136,2]
[341313478,1730764245275,-500.0,0.00030136,2]
[341313479,1730764245284,-500.0,0.00030136,2]
[341313480,1730764245292,-500.0,0.00030136,2]
[341313481,1730764245303,-500.0,0.00030136,2]
[341313482,1730764245312,-500.0,0.00030136,2]
[341313483,1730764245321,-500.0,0.00030136,2]
[341313484,1730764245331,-500.0,0.00030136,2]
[341313485,1730764245340,-500.0,0.00030136,2]
[341313486,1730764245349,-176.33600338,0.00030136,2]
[341313487,1730764245359,-500.0,0.00030136,2]
[341313488,1730764245368,-500.0,0.00030136,2]
[341313489,1730764245377,-228.99,0.00030136,2]
[341313490,1730764245386,-500.57300996,0.00030136,2]
[341313491,1730764245394,-500.0,0.00030136,2]
[341313492,1730764245403,-565.25708682,0.00030136,2]
[341313493,1730764245413,-500.0,0.00030136,2]
[341313494,1730764245423,-500.0,0.00030136,2]
[341313495,1730764245433,-500.0,0.00030136,2]
[341313496,1730764245442,-500.0,0.00030136,2]
[341313497,1730764245451,-500.0,0.00030136,2]
[341313498,1730764245460,-500.0,0.00030136,2]
[341313499,1730764245469,-500.0,0.00030136,2]
[341313500,1730764245479,-500.0,0.00030136,2]
[341313501,1730764245488,-500.0,0.00030136,2]
[341313502,1730764245497,-500.0,0.00030136,2]
[341313503,1730764245506,-502.44986567,0.00030136,2]
[341313504,1730764245515,-500.0,0.00030136,2]
[341313505,1730764245525,-500.0,0.00030136,2]
[341313507,1730764245534,-500.0,0.00030136,2]
[341313509,1730764245544,-500.0,0.00030136,2]
[341313512,1730764245554,-500.0,0.00030136,2]
[341313515,1730764245565,-541.79,0.00030136,2]
[341313517,1730764245576,-500.0,0.00030136,2]
[341313519,1730764245586,-500.0,0.00030136,2]
[341313522,1730764245595,-500.0,0.00030136,2]
[341313523,1730764245605,-500.0,0.00030136,2]
[341313525,1730764245614,-500.0,0.00030136,2]
[341313527,1730764245623,-500.0,0.00030136,2]
[341313529,1730764245631,-500.0,0.00030136,2]
[341313532,1730764245641,-500.0,0.00030136,2]
[341313533,1730764245654,-500.0,0.00030136,2]
[341313536,1730764245664,-185.02318131,0.00030136,2]
[341313538,1730764245675,-500.0,0.00030136,2]
[341313540,1730764245686,-500.0,0.00030136,2]
[341313542,1730764245696,-503.37022424,0.00030136,2]
[341313544,1730764245706,-500.0,0.00030136,2]
[341313546,1730764245715,-500.0,0.00030136,2]
[341313547,1730764245724,-309.35329575,0.00030136,2]
[341313550,1730764245734,-500.0,0.00030136,2]
[341313551,1730764245743,-500.0,0.00030136,2]
[341313553,1730764245753,-500.0,0.00030136,2]
[341313556,1730764245763,-500.0,0.00030136,2]
[341313557,1730764245772,-500.0,0.00030136,2]
[341313559,1730764245781,-500.0,0.00030136,2]
[341313561,1730764245791,-619.81706106,0.00030136,2]
[341313563,1730764245800,-500.0,0.00030136,2]
[341313565,1730764245809,-500.0,0.00030136,2]
[341313567,1730764245818,-500.0,0.00030136,2]
[341313569,1730764245828,-500.0,0.00030136,2]
[341313571,1730764245838,-500.0,0.00030136,2]
[341313573,1730764245847,-500.0,0.00030136,2]
[341313575,1730764245857,-500.0,0.00030136,2]
[341313577,1730764245866,-500.0,0.00030136,2]
[341313579,1730764245875,-529.34452611,0.00030136,2]
[341313581,1730764245885,-500.0,0.00030136,2]
[341313583,1730764245895,-500.0,0.00030136,2]
[341313584,1730764245904,-500.0,0.00030136,2]
[341313585,1730764245914,-500.64225993,0.00030136,2]
[341313586,1730764245923,-500.0,0.00030136,2]
[341313587,1730764245933,-500.0,0.00030136,2]
[341313588,1730764245943,-500.0,0.00030136,2]
[341313589,1730764245953,-500.0,0.00030136,2]
[341313590,1730764245962,-629.84,0.00030136,2]
[341313591,1730764245972,-500.0,0.00030136,2]
[341313592,1730764245982,-500.0,0.00030136,2]
[341313593,1730764245991,-500.0,0.00030136,2]
[341313594,1730764246001,-500.0,0.00030136,2]
[341313595,1730764246010,-500.0,0.00030136,2]
[341313596,1730764246019,-592.6661874,0.00030136,2]
[341313597,1730764246029,-358.37838823,0.00030136,2]
[341313598,1730764246038,-500.0,0.00030136,2]
[341313599,1730764246049,-500.0,0.00030136,2]
[341313600,1730764246058,-500.0,0.00030136,2]
[341313601,1730764246068,-500.0,0.00030136,2]
[341313602,1730764246078,-500.0,0.00030136,2]
[341313604,1730764246087,-500.0,0.00030136,2]
[341313605,1730764246097,-578.71770538,0.00030136,2]
[341313606,1730764246109,-641.4,0.00030136,2]
[341313607,1730764246120,-500.0,0.00030136,2]
[341313608,1730764246130,-500.0,0.00030136,2]
[341313609,1730764246141,-332.07,0.00030136,2]
[341313610,1730764246152,-508.18835039,0.00030136,2]
[341313611,1730764246162,-500.0,0.00030136,2]
[341313612,1730764246172,-186.7761414,0.00030136,2]
[341313613,1730764246182,-500.0,0.00030136,2]
[341313614,1730764246192,-500.0,0.00030136,2]
[341313615,1730764246201,-500.0,0.00030136,2]
[341313616,1730764246211,-391.58504158,0.00030136,2]
[341313617,1730764246318,-108.41495842,0.00030136,2]
[341313618,1730764246328,-500.0,0.00030136,2]